fUST/lending_fUST_20250819
["ID","MTS","AMOUNT","RATE_DAILY","PERIOD"]
[380216872,1755613867271,-516.03377337,0.00021095,2]
[380216873,1755613867281,-480.0,0.00021095,2]
[380216874,1755613867290,-897.44,0.00021095,2]
[380216875,1755613867300,-480.0,0.00021095,2]
[380216876,1755613867309,-151.0,0.00021096,2]
[380216877,1755613867318,-210.13063666,0.00021096,2]
[380216878,1755613867327,-151.0,0.00021096,2]
[380216879,1755613867339,-210.3926271,0.00021096,2]
[380216880,1755613867349,-297.0,0.00021096,2]
[380216881,1755613867358,-500.0,0.00021096,2]
[380216882,1755613867368,-583.0,0.00021096,2]
[380216883,1755613867377,-151.0,0.00021096,2]
[380216884,1755613867388,-3000.0,0.000211,2]
[380216885,1755613867397,-500.0,0.00021103,2]
[380216886,1755613867406,-3000.0,0.0002111,2]
[380216887,1755613867415,-3000.0,0.0002112,2]
[380216888,1755613867426,-3000.0,0.0002113,2]
[380216889,1755613867435,-10237.67817977,0.00021138,2]
[380216890,1755613867445,-3000.0,0.0002114,2]
[380216891,1755613867454,-4387.669798,0.0002115,2]
[380216892,1755613867463,-154.692496,0.0002115,30]
[380216893,1755613867472,-500.0,0.00021173,2]
[380216894,1755613867481,-586.70464481,0.00021176,2]
[380216895,1755613867492,-128273.94826969,0.000212,2]
[380216896,1755613867503,-2176.00156645,0.000212,2]
[380216897,1755613867515,-76115.66952271,0.000212,2]
[380216898,1755613867524,-154.692496,0.000212,30]
[380216899,1755613867534,-168.0,0.00021225,2]
[380216900,1755613867543,-207.0,0.0002127,2]
[380216901,1755613867552,-1778.98113468,0.00021272,2]
[380216902,1755613867561,-200.0,0.0002135,2]
[380216903,1755613867570,-480.0,0.00021369,2]
[380216904,1755613867579,-480.0,0.00021369,2]
[380216905,1755613867588,-480.0,0.00021369,2]
[380216906,1755613867597,-725.82,0.00021369,2]
[380216907,1755613867607,-480.0,0.00021369,2]
[380216908,1755613867616,-480.0,0.00021369,2]
[380216909,1755613867626,-480.0,0.00021369,2]
[380216910,1755613867636,-480.0,0.00021369,2]
[380216911,1755613867645,-387.09,0.00021369,2]
[380216912,1755613867654,-480.0,0.00021369,2]
[380216913,1755613867664,-514.56,0.00021369,2]
[380216914,1755613867674,-480.0,0.00021369,2]
[380216915,1755613867683,-2620.24,0.00021369,2]
[380216916,1755613867693,-587.39179579,0.00021369,2]
[380216917,1755613867702,-480.0,0.00021369,2]
[380216918,1755613867712,-480.0,0.00021369,2]
[380216919,1755613867722,-480.0,0.00021369,2]
[380216920,1755613867731,-1891.29,0.00021369,2]
[380216921,1755613867743,-480.0,0.00021369,2]
[380216922,1755613867752,-547.4,0.00021369,2]
[380216923,1755613867761,-480.0,0.00021369,2]
[380216924,1755613867771,-533.31,0.00021369,2]
[380216925,1755613867779,-480.0,0.00021369,2]
[380216926,1755613867788,-577.17384512,0.00021369,2]
[380216927,1755613867798,-480.0,0.00021369,2]
[380216928,1755613867807,-732.56,0.00021369,2]
[380216929,1755613867816,-480.0,0.00021369,2]
[380216930,1755613867825,-262.42206359,0.00021369,2]
[380216931,1755613867834,-480.0,0.00021369,2]
[380216932,1755613867843,-480.0,0.00021369,2]
[380216933,1755613867852,-480.0,0.00021369,2]
[380216934,1755613867861,-3836.92,0.00021369,2]
[380216935,1755613867871,-480.0,0.00021369,2]
[380216936,1755613867880,-506.69,0.00021369,2]
[380216937,1755613867889,-480.0,0.00021369,2]
[380216938,1755613867898,-480.0,0.00021369,2]
[380216939,1755613867907,-480.0,0.00021369,2]
[380216940,1755613867917,-480.0,0.00021369,2]
[380216941,1755613867926,-480.0,0.00021369,2]
[380216942,1755613867935,-583.2,0.00021369,2]
[380216943,1755613867944,-319.99548297,0.00021369,2]
[380216944,1755613867954,-480.0,0.00021369,2]
[380216945,1755613867963,-480.0,0.00021369,2]
[380216946,1755613867974,-480.0,0.00021369,2]
[380216947,1755613867984,-480.0,0.00021369,2]
[380216948,1755613867995,-480.0,0.00021369,2]
[380216949,1755613868004,-480.0,0.00021369,2]
[380216950,1755613868013,-480.0,0.00021369,2]
[380216951,1755613868023,-1286.2,0.00021369,2]
[380216952,1755613868032,-1476.73,0.00021369,2]
[380216953,1755613868042,-614.35,0.00021369,2]
[380216954,1755613868052,-1204.0,0.00021369,2]
[380216955,1755613868061,-584.32,0.00021369,2]
[380216956,1755613868072,-1958.67,0.00021369,2]
[380216957,1755613868081,-991.24,0.00021369,2]
[380216958,1755613868091,-480.0,0.00021369,2]
[380216959,1755613868100,-6821.03,0.00021369,2]
[380216960,1755613868110,-612.74001717,0.00021369,2]
[380216961,1755613868120,-480.0,0.00021369,2]
[380216962,1755613868129,-519.5,0.00021369,2]
[380216963,1755613868139,-480.0,0.00021369,2]
[380216964,1755613868148,-454.59407043,0.00021369,2]
[380216965,1755613868157,-480.0,0.00021369,2]
[380216966,1755613868167,-480.0,0.00021369,2]
[380216967,1755613868177,-480.0,0.00021369,2]
[380216968,1755613868186,-792.47,0.00021369,2]
[380216969,1755613868195,-759.45,0.00021369,2]
[380216970,1755613868204,-528.46,0.00021369,2]
[380216971,1755613868213,-571.37,0.00021369,2]
[380216972,1755613868222,-480.0,0.00021369,2]
[380216973,1755613868232,-480.0,0.00021369,2]
[380216974,1755613868243,-480.0,0.00021369,2]
[380216975,1755613868253,-480.0,0.00021369,2]
[380216976,1755613868262,-480.0,0.00021369,2]
[380216977,1755613868272,-2319.3,0.00021369,2]
[380216978,1755613868282,-9592.27,0.00021369,2]
[380216979,1755613868292,-480.0,0.00021369,2]
[380216980,1755613868302,-480.0,0.00021369,2]
[380216981,1755613868314,-480.0,0.00021369,2]
[380216982,1755613868324,-665.67,0.00021369,2]
[380216983,1755613868334,-480.0,0.00021369,2]
[380216984,1755613868343,-868.36,0.00021369,2]
[380216985,1755613868357,-1062.99,0.00021369,2]
[380216986,1755613868366,-480.0,0.00021369,2]
[380216987,1755613868376,-597.86,0.00021369,2]
[380216988,1755613868385,-774.12,0.00021369,2]
[380216989,1755613868395,-666.95,0.00021369,2]
[380216990,1755613868405,-480.0,0.00021369,2]
[380216991,1755613868414,-2568.04,0.00021369,2]
[380216992,1755613868426,-534.72,0.00021369,2]
[380216993,1755613868437,-1648.41,0.00021369,2]
[380216994,1755613868447,-480.0,0.00021369,2]
[380216995,1755613868457,-646.52,0.00021369,2]
[380216996,1755613868466,-480.0,0.00021369,2]
[380216997,1755613868475,-1496.02,0.00021369,2]
[380216998,1755613868485,-480.0,0.00021369,2]
[380216999,1755613868496,-480.0,0.00021369,2]
[380217000,1755613868506,-1947.41,0.00021369,2]
[380217001,1755613868515,-1530.12,0.00021369,2]
[380217002,1755613868524,-1222.28,0.00021369,2]
[380217003,1755613868533,-480.0,0.00021369,2]
[380217004,1755613868543,-480.0,0.00021369,2]
[380217005,1755613868552,-534.48,0.00021369,2]
[380217006,1755613868561,-726.33,0.00021369,2]
[380217007,1755613868571,-603.12,0.00021369,2]
[380217008,1755613868580,-1170.35,0.00021369,2]
[380217009,1755613868589,-480.0,0.00021369,2]
[380217010,1755613868598,-1177.29,0.00021369,2]
[380217011,1755613868608,-480.0,0.00021369,2]
[380217012,1755613868617,-1014.46,0.00021369,2]
[380217013,1755613868627,-480.0,0.00021369,2]
[380217014,1755613868636,-722.89,0.00021369,2]
[380217015,1755613868646,-480.0,0.00021369,2]
[380217016,1755613868655,-936.91,0.00021369,2]
[380217017,1755613868665,-480.0,0.00021369,2]
[380217018,1755613868675,-480.0,0.00021369,2]
[380217019,1755613868684,-3243.1,0.00021369,2]
[380217020,1755613868694,-480.0,0.00021369,2]
[380217021,1755613868703,-1029.92,0.00021369,2]
[380217022,1755613868713,-1138.77,0.00021369,2]
[380217023,1755613868722,-932.49,0.00021369,2]
[380217024,1755613868731,-977.82,0.00021369,2]
[380217025,1755613868744,-1153.09,0.00021369,2]
[380217026,1755613868872,-480.0,0.00021369,2]
[380217027,1755613868883,-480.0,0.00021369,2]
[380217028,1755613868892,-967.55,0.00021369,2]
[380217029,1755613868902,-885.39,0.00021369,2]
[380217030,1755613868911,-2882.8,0.00021369,2]
[380217031,1755613868921,-513.1,0.00021369,2]
[380217032,1755613868931,-3841.02,0.00021369,2]
[380217033,1755613868941,-493.52,0.00021369,2]
[380217034,1755613868950,-846.97,0.00021369,2]
[380217035,1755613868960,-332.52442602,0.00021369,2]
[380217036,1755613868969,-645.92,0.00021369,2]
[380217037,1755613868979,-1771.66,0.00021369,2]
[380217038,1755613868991,-570.68,0.00021369,2]
[380217039,1755613869001,-518.17,0.00021369,2]
[380217040,1755613869010,-1307.34,0.00021369,2]
[380217041,1755613869019,-1084.74,0.00021369,2]
[380217042,1755613869029,-175.00713836,0.00021369,2]
[380217043,1755613869038,-665.98,0.00021369,2]
[380217044,1755613869047,-486.91,0.00021369,2]
[380217045,1755613869057,-480.0,0.00021369,2]
[380217046,1755613869067,-2187.7,0.00021369,2]
[380217047,1755613869076,-685.15,0.00021369,2]
[380217048,1755613869085,-480.0,0.00021369,2]
[380217049,1755613869095,-869.33,0.00021369,2]
[380217050,1755613869104,-1639.56,0.00021369,2]
[380217051,1755613869113,-11332.24,0.00021369,2]
[380217052,1755613869122,-777.85,0.00021369,2]
[380217053,1755613869131,-480.0,0.00021369,2]
[380217054,1755613869140,-1106.56,0.00021369,2]
[380217055,1755613869150,-1521.65,0.00021369,2]
[380217056,1755613869159,-554.462247,0.00021369,2]
[380217057,1755613869169,-691.74,0.00021369,2]
[380217058,1755613869179,-2082.42,0.00021369,2]
[380217059,1755613869188,-1024.36,0.00021369,2]
[380217060,1755613869198,-806.64,0.00021369,2]
[380217061,1755613869211,-785.88,0.00021369,2]
[380217062,1755613869220,-456.39928366,0.00021369,2]
[380217063,1755613869230,-480.0,0.00021369,2]
[380217064,1755613869242,-480.0,0.00021369,2]
[380217065,1755613869252,-480.0,0.00021369,2]
[380217066,1755613869261,-897.44,0.00021369,2]
[380217067,1755613869270,-480.0,0.00021369,2]
[380217068,1755613869279,-198.0,0.0002137,2]
[380217069,1755613869289,-151.0,0.0002137,2]
[380217070,1755613869299,-296.30669961,0.0002137,2]
[380217071,1755613869308,-583.0,0.0002137,2]
[380217072,1755613869317,-274.8275706,0.0002137,2]
[380217073,1755613869326,-250.0,0.000214,2]
[380217074,1755613869342,-1001.81,0.000214,5]
[380217075,1755613869351,-154.692496,0.000214,5]
[380217076,1755613869361,-2000.0,0.00021416,2]
[380217077,1755613869371,-160.0,0.00021422,3]
[380217078,1755613869386,-160.0,0.00021422,5]
[380217079,1755613869395,-935.5431842,0.00021425,2]
[380217080,1755613869405,-587.7886402,0.00021425,2]
[380217081,1755613869415,-351.0605393,0.00021425,2]
[380217082,1755613869426,-624.30436977,0.00021444,2]
[380217083,1755613869435,-168.0,0.00021451,2]
[380217084,1755613869444,-207.0,0.0002146,2]
[380217085,1755613869453,-154.692496,0.0002146,4]
[380217086,1755613869462,-168.0,0.00021486,2]
[380217087,1755613869472,-720.0,0.00021517,20]
[380217088,1755613869482,-360.0,0.00021529,2]
[380217089,1755613869496,-10237.67817977,0.00021551,2]
[380217090,1755613869507,-6147.61852095,0.00021598,2]
[380217091,1755613869517,-154.692496,0.000216,5]
[380217092,1755613869528,-207.0,0.0002164,2]
[380217093,1755613869539,-525.88,0.00021643,2]
[380217094,1755613869549,-480.0,0.00021643,2]
[380217095,1755613869559,-480.0,0.00021643,2]
[380217096,1755613869569,-480.0,0.00021643,2]
[380217097,1755613869579,-480.0,0.00021643,2]
[380217098,1755613869589,-480.0,0.00021643,2]
[380217099,1755613869600,-452.93291857,0.00021643,2]
[380217100,1755613869610,-480.0,0.00021643,2]
[380217101,1755613869619,-514.56,0.00021643,2]
[380217102,1755613869629,-480.0,0.00021643,2]
[380217103,1755613869638,-2620.24,0.00021643,2]
[380217104,1755613869648,-480.0,0.00021643,2]
[380217105,1755613869657,-480.0,0.00021643,2]
[380217106,1755613869667,-480.0,0.00021643,2]
[380217107,1755613869676,-1891.29,0.00021643,2]
[380217108,1755613869686,-480.0,0.00021643,2]
[380217109,1755613869696,-547.4,0.00021643,2]
[380217110,1755613869705,-480.0,0.00021643,2]
[380217111,1755613869715,-533.31,0.00021643,2]
[380217112,1755613869724,-480.0,0.00021643,2]
[380217113,1755613869733,-480.0,0.00021643,2]
[380217114,1755613869747,-732.56,0.00021643,2]
[380217115,1755613869756,-366.04539848,0.00021643,2]
[380217116,1755613869766,-480.0,0.00021643,2]
[380217117,1755613869775,-480.0,0.00021643,2]
[380217118,1755613869785,-480.0,0.00021643,2]
[380217119,1755613869795,-3836.92,0.00021643,2]
[380217120,1755613869804,-480.0,0.00021643,2]
[380217121,1755613869814,-506.69,0.00021643,2]
[380217122,1755613869824,-480.0,0.00021643,2]
[380217123,1755613869833,-480.0,0.00021643,2]
[380217124,1755613869843,-480.0,0.00021643,2]
[380217125,1755613869853,-480.0,0.00021643,2]
[380217126,1755613869863,-480.0,0.00021643,2]
[380217127,1755613869872,-583.2,0.00021643,2]
[380217128,1755613869882,-480.0,0.00021643,2]
[380217129,1755613869892,-480.0,0.00021643,2]
[380217130,1755613869901,-206.09,0.00021643,2]
[380217131,1755613869911,-480.0,0.00021643,2]
[380217132,1755613869920,-480.0,0.00021643,2]
[380217133,1755613869931,-480.0,0.00021643,2]
[380217134,1755613869940,-480.0,0.00021643,2]
[380217135,1755613869950,-1286.2,0.00021643,2]
[380217136,1755613869960,-1476.73,0.00021643,2]
[380217137,1755613869970,-614.35,0.00021643,2]
[380217138,1755613869980,-1204.0,0.00021643,2]
[380217139,1755613869992,-584.32,0.00021643,2]
[380217140,1755613870002,-1958.67,0.00021643,2]
[380217141,1755613870012,-991.24,0.00021643,2]
[380217142,1755613870022,-480.0,0.00021643,2]
[380217143,1755613870033,-6821.03,0.00021643,2]
[380217144,1755613870043,-480.0,0.00021643,2]
[380217145,1755613870053,-519.5,0.00021643,2]
[380217146,1755613870063,-480.0,0.00021643,2]
[380217147,1755613870072,-384.84335385,0.00021643,2]
[380217148,1755613870082,-480.0,0.00021643,2]
[380217149,1755613870091,-480.0,0.00021643,2]
[380217150,1755613870101,-792.47,0.00021643,2]
[380217151,1755613870111,-759.45,0.00021643,2]
[380217152,1755613870120,-528.46,0.00021643,2]
[380217153,1755613870130,-571.37,0.00021643,2]
[380217154,1755613870139,-480.0,0.00021643,2]
[380217155,1755613870148,-480.0,0.00021643,2]
[380217156,1755613870158,-480.0,0.00021643,2]
[380217157,1755613870167,-480.0,0.00021643,2]
[380217158,1755613870177,-480.0,0.00021643,2]
[380217159,1755613870187,-2319.3,0.00021643,2]
[380217160,1755613870196,-9592.27,0.00021643,2]
[380217161,1755613870206,-440.0,0.00021643,2]
[380217162,1755613870215,-480.0,0.00021643,2]
[380217163,1755613870225,-480.0,0.00021643,2]
[380217164,1755613870235,-665.67,0.00021643,2]
[380217165,1755613870248,-480.0,0.00021643,2]
[380217166,1755613870258,-868.36,0.00021643,2]
[380217167,1755613870268,-1062.99,0.00021643,2]
[380217168,1755613870277,-480.0,0.00021643,2]
[380217169,1755613870287,-597.86,0.00021643,2]
[380217170,1755613870296,-774.12,0.00021643,2]
[380217171,1755613870306,-666.95,0.00021643,2]
[380217172,1755613870315,-480.0,0.00021643,2]
[380217173,1755613870325,-2568.04,0.00021643,2]
[380217174,1755613870334,-534.72,0.00021643,2]
[380217175,1755613870344,-1648.41,0.00021643,2]
[380217176,1755613870357,-230.79196233,0.00021643,2]
[380217177,1755613870366,-646.52,0.00021643,2]
[380217178,1755613870378,-480.0,0.00021643,2]
[380217179,1755613870388,-1496.02,0.00021643,2]
[380217180,1755613870398,-480.0,0.00021643,2]
[380217181,1755613870408,-480.0,0.00021643,2]
[380217182,1755613870417,-1947.41,0.00021643,2]
[380217183,1755613870428,-1530.12,0.00021643,2]
[380217184,1755613870438,-1222.28,0.00021643,2]
[380217185,1755613870447,-480.0,0.00021643,2]
[380217186,1755613870457,-480.0,0.00021643,2]
[380217187,1755613870467,-534.48,0.00021643,2]
[380217188,1755613870477,-726.33,0.00021643,2]
[380217189,1755613870487,-603.12,0.00021643,2]
[380217190,1755613870500,-1170.35,0.00021643,2]
[380217191,1755613870510,-480.0,0.00021643,2]
[380217192,1755613870520,-1177.29,0.00021643,2]
[380217193,1755613870530,-480.0,0.00021643,2]
[380217194,1755613870539,-1014.46,0.00021643,2]
[380217195,1755613870548,-480.0,0.00021643,2]
[380217196,1755613870558,-722.89,0.00021643,2]
[380217197,1755613870568,-480.01222903,0.00021643,2]
[380217198,1755613870578,-936.91,0.00021643,2]
[380217199,1755613870587,-480.0,0.00021643,2]
[380217200,1755613870597,-480.0,0.00021643,2]
[380217201,1755613870608,-3243.1,0.00021643,2]
[380217202,1755613870618,-480.0,0.00021643,2]
[380217203,1755613870628,-1029.92,0.00021643,2]
[380217204,1755613870638,-1138.77,0.00021643,2]
[380217205,1755613870649,-932.49,0.00021643,2]
[380217206,1755613870658,-977.82,0.00021643,2]
[380217207,1755613870669,-1153.09,0.00021643,2]
[380217208,1755613870679,-480.0,0.00021643,2]
[380217209,1755613870689,-480.0,0.00021643,2]
[380217210,1755613870699,-967.55,0.00021643,2]
[380217211,1755613870709,-885.39,0.00021643,2]
[380217212,1755613870719,-2882.8,0.00021643,2]
[380217213,1755613870729,-513.1,0.00021643,2]
[380217214,1755613870739,-3841.02,0.00021643,2]
[380217215,1755613870756,-493.52,0.00021643,2]
[380217216,1755613870766,-846.97,0.00021643,2]
[380217217,1755613870776,-645.92,0.00021643,2]
[380217218,1755613870785,-1771.66,0.00021643,2]
[380217219,1755613870795,-570.68,0.00021643,2]
[380217220,1755613870804,-518.17,0.00021643,2]
[380217221,1755613870814,-1307.34,0.00021643,2]
[380217222,1755613870824,-1084.74,0.00021643,2]
[380217223,1755613870834,-665.98,0.00021643,2]
[380217224,1755613870843,-486.91,0.00021643,2]
[380217225,1755613870853,-230.24920531,0.00021643,2]
[380217226,1755613870862,-2187.7,0.00021643,2]
[380217227,1755613870872,-685.15,0.00021643,2]
[380217228,1755613870881,-480.0,0.00021643,2]
[380217229,1755613870890,-1639.56,0.00021643,2]
[380217230,1755613870900,-869.33,0.00021643,2]
[380217231,1755613870909,-11332.24,0.00021643,2]
[380217232,1755613870920,-777.85,0.00021643,2]
[380217233,1755613870929,-480.0,0.00021643,2]
[380217234,1755613870939,-1106.56,0.00021643,2]
[380217235,1755613870948,-1521.65,0.00021643,2]
[380217236,1755613870958,-691.74,0.00021643,2]
[380217237,1755613870967,-2082.42,0.00021643,2]
[380217238,1755613870977,-1024.36,0.00021643,2]
[380217239,1755613870987,-806.64,0.00021643,2]
[380217240,1755613871002,-785.88,0.00021643,2]
[380217241,1755613871012,-480.0,0.00021643,2]
[380217242,1755613871022,-480.0,0.00021643,2]
[380217243,1755613871033,-480.0,0.00021643,2]
[380217244,1755613871042,-897.44,0.00021643,2]
[380217245,1755613871053,-480.0,0.00021643,2]
[380217246,1755613871064,-286.74543599,0.00021644,2]
[380217247,1755613871074,-583.0,0.00021644,2]
[380217248,1755613871084,-291.89083887,0.00021644,2]
[380217249,1755613871095,-500.0,0.00021644,2]
[380217250,1755613871104,-500.0,0.00021644,2]
[380217251,1755613871115,-500.0,0.00021644,2]
[380217252,1755613871125,-500.0,0.00021644,2]
[380217253,1755613871135,-500.0,0.00021644,2]
[380217254,1755613871145,-500.0,0.00021644,2]
[380217255,1755613871155,-500.0,0.00021644,2]
[380217256,1755613871166,-500.0,0.00021644,2]
[380217257,1755613871176,-500.0,0.00021644,2]
[380217258,1755613871186,-500.0,0.00021644,2]
[380217259,1755613871195,-216.30903859,0.00021644,2]
[380217260,1755613871205,-1290.24,0.00021701,2]
[380217261,1755613871217,-168.0,0.00021726,2]
[380217262,1755613871226,-154.692496,0.00021867,2]
[380217263,1755613871236,-586.70464481,0.00021906,2]
[380217264,1755613871251,-480.0,0.00021917,2]
[380217265,1755613871261,-480.0,0.00021917,2]
[380217266,1755613871272,-480.0,0.00021917,2]
[380217267,1755613871282,-480.0,0.00021917,2]
[380217268,1755613871292,-480.0,0.00021917,2]
[380217269,1755613871302,-480.0,0.00021917,2]
[380217270,1755613871434,-514.56,0.00021917,2]
[380217271,1755613871445,-480.0,0.00021917,2]
[380217272,1755613871456,-2620.24,0.00021917,2]
[380217273,1755613871466,-480.0,0.00021917,2]
[380217274,1755613871476,-420.0,0.00021917,2]
[380217275,1755613871486,-480.0,0.00021917,2]
[380217276,1755613871501,-1891.29,0.00021917,2]
[380217277,1755613871510,-480.0,0.00021917,2]
[380217278,1755613871520,-547.4,0.00021917,2]
[380217279,1755613871530,-480.0,0.00021917,2]
[380217280,1755613871540,-533.31,0.00021917,2]
[380217281,1755613871550,-480.0,0.00021917,2]
[380217282,1755613871559,-460.0,0.00021917,2]
[380217283,1755613871569,-732.56,0.00021917,2]
[380217284,1755613871579,-187.11495185,0.00021917,2]
[380217285,1755613871588,-480.0,0.00021917,2]
[380217286,1755613871598,-480.0,0.00021917,2]
[380217287,1755613871608,-3836.92,0.00021917,2]
[380217288,1755613871618,-480.0,0.00021917,2]
[380217289,1755613871627,-506.69,0.00021917,2]
[380217290,1755613871637,-480.0,0.00021917,2]
[380217291,1755613871647,-480.0,0.00021917,2]
[380217292,1755613871657,-480.0,0.00021917,2]
[380217293,1755613871667,-480.0,0.00021917,2]
[380217294,1755613871676,-490.42,0.00021917,2]
[380217295,1755613871685,-583.2,0.00021917,2]
[380217296,1755613871695,-426.95566592,0.00021917,2]
[380217297,1755613871704,-480.0,0.00021917,2]
[380217298,1755613871713,-480.0,0.00021917,2]
[380217299,1755613871723,-480.0,0.00021917,2]
[380217300,1755613871733,-480.0,0.00021917,2]
[380217301,1755613871748,-480.0,0.00021917,2]
[380217302,1755613871758,-1286.2,0.00021917,2]
[380217303,1755613871768,-1476.73,0.00021917,2]
[380217304,1755613871777,-614.35,0.00021917,2]
[380217305,1755613871787,-1204.0,0.00021917,2]
[380217306,1755613871796,-584.32,0.00021917,2]
[380217307,1755613871806,-1958.67,0.00021917,2]
[380217308,1755613871816,-991.24,0.00021917,2]
[380217309,1755613871825,-480.0,0.00021917,2]
[380217310,1755613871835,-6821.03,0.00021917,2]
[380217311,1755613871844,-480.0,0.00021917,2]
[380217312,1755613871854,-519.5,0.00021917,2]
[380217313,1755613871864,-480.0,0.00021917,2]
[380217314,1755613871873,-480.0,0.00021917,2]
[380217315,1755613871884,-792.47,0.00021917,2]
[380217316,1755613871894,-528.46,0.00021917,2]
[380217317,1755613871903,-571.37,0.00021917,2]
[380217318,1755613871913,-480.0,0.00021917,2]
[380217319,1755613871923,-389.00635601,0.00021917,2]
[380217320,1755613871934,-150.59178982,0.00021917,2]
[380217321,1755613871944,-480.0,0.00021917,2]
[380217322,1755613871955,-480.0,0.00021917,2]
[380217323,1755613871967,-2319.3,0.00021917,2]
[380217324,1755613871978,-9592.27,0.00021917,2]
[380217325,1755613871990,-480.0,0.00021917,2]
[380217326,1755613872004,-480.0,0.00021917,2]
[380217327,1755613872014,-665.67,0.00021917,2]
[380217328,1755613872024,-480.0,0.00021917,2]
[380217329,1755613872035,-868.36,0.00021917,2]
[380217330,1755613872045,-1062.99,0.00021917,2]
[380217331,1755613872055,-480.0,0.00021917,2]
[380217332,1755613872064,-597.86,0.00021917,2]
[380217333,1755613872074,-774.12,0.00021917,2]
[380217334,1755613872084,-666.95,0.00021917,2]
[380217335,1755613872094,-480.0,0.00021917,2]
[380217336,1755613872103,-2568.04,0.00021917,2]
[380217337,1755613872113,-534.72,0.00021917,2]
[380217338,1755613872123,-1648.41,0.00021917,2]
[380217339,1755613872133,-646.52,0.00021917,2]
[380217340,1755613872142,-480.0,0.00021917,2]
[380217341,1755613872152,-1496.02,0.00021917,2]
[380217342,1755613872161,-480.0,0.00021917,2]
[380217343,1755613872171,-480.0,0.00021917,2]
[380217344,1755613872180,-1947.41,0.00021917,2]
[380217345,1755613872190,-1222.28,0.00021917,2]
[380217346,1755613872199,-480.0,0.00021917,2]
[380217347,1755613872209,-480.0,0.00021917,2]
[380217348,1755613872218,-1530.12,0.00021917,2]
[380217349,1755613872228,-534.48,0.00021917,2]
[380217350,1755613872239,-726.33,0.00021917,2]
[380217351,1755613872252,-603.12,0.00021917,2]
[380217352,1755613872262,-1170.35,0.00021917,2]
[380217353,1755613872272,-480.0,0.00021917,2]
[380217354,1755613872282,-1177.29,0.00021917,2]
[380217355,1755613872291,-480.0,0.00021917,2]
[380217356,1755613872301,-1014.46,0.00021917,2]
[380217357,1755613872310,-480.0,0.00021917,2]
[380217358,1755613872320,-722.89,0.00021917,2]
[380217359,1755613872329,-936.91,0.00021917,2]
[380217360,1755613872348,-480.0,0.00021917,2]
[380217361,1755613872357,-460.0,0.00021917,2]
[380217362,1755613872367,-3243.1,0.00021917,2]
[380217363,1755613872377,-480.0,0.00021917,2]
[380217364,1755613872387,-1029.92,0.00021917,2]
[380217365,1755613872396,-1138.77,0.00021917,2]
[380217366,1755613872405,-932.49,0.00021917,2]
[380217367,1755613872415,-977.82,0.00021917,2]
[380217368,1755613872424,-1153.09,0.00021917,2]
[380217369,1755613872435,-188.84587543,0.00021917,2]
[380217370,1755613872445,-480.0,0.00021917,2]
[380217371,1755613872455,-967.55,0.00021917,2]